Cogmind - Beta 13 @@@ ROGUE MODE // 2024.04.02 @ 01:43:09 Player: Patches Result: Destroyed by G-34 Mercenary with Small Laser Performance ------------- Evolutions (0) 0 Regions Visited (1) 200 Robots Destroyed (9) 45 Value Destroyed (121) 121 Prototype IDs (0) 0 Alien Tech Used (0) 0 Bonus (0) 0 TOTAL SCORE: 366 Bonus ------- None Cogmind --------- Core Integrity 0/250 Matter 300/300 Energy 99/100 System Corruption 0% Temperature Cool (18) Movement Core (100) Ox1 Location -10/Materials Parts ------- > --- POWER (1) -------- (None) > --- PROPULSION (2) --- (None) > --- UTILITY (2) ------ Small Storage Unit > --- WEAPON (2) ------- (None) > --- INVENTORY (8) ---- Ion Engine Light Ion Engine Aluminum Leg Aluminum Leg Signal Interpreter Hacking Suite Tractor Beam Peak State ------------ > --- POWER ------------ Light Ion Engine > --- PROPULSION ------- Light Treads Light Treads > --- UTILITY ---------- Small Storage Unit Tractor Beam > --- WEAPON ----------- EM Pulse Gun > --- INVENTORY -------- Ion Engine Aluminum Leg Aluminum Leg [Rating: 6] Favorites ----------- Power Light Ion Engine Engine Light Ion Engine Propulsion Light Treads Treads Light Treads Utility Small Storage Unit Device Seismic Detector Storage Small Storage Unit Weapon EM Pulse Gun Energy Gun EM Pulse Gun Build | -11 -10 ------- Run | Yrd Mat Slots Evolved . | . . Power . | . . Propulsion . | . . Utility . | . . Weapon . | . . Parts Attached 7 | 7 . Power 1 | 1 . Engine 1 | 1 . Core . | . . Reactor . | . . Propulsion 2 | 2 . Treads 2 | 2 . Leg . | . . Wheel . | . . Hover . | . . Flight . | . . Utility 3 | 3 . Device 2 | 2 . Storage 1 | 1 . Processor . | . . Hackware . | . . Protection . | . . Artifact . | . . Weapon 1 | 1 . Energy Gun 1 | 1 . Energy Cannon . | . . Ballistic Gun . | . . Ballistic Cannon . | . . Launcher . | . . Special Weapon . | . . Impact Weapon . | . . Slashing Weapon . | . . Piercing Weapon . | . . Special Melee Weapon . | . . Unidentified Prototypes . | . . Parts Lost 5 | . 5 Power 1 | . 1 Propulsion 2 | . 2 Utility 1 | . 1 Weapon 1 | . 1 Highest Loss Streak 4 | . 4 To Critical Strikes . | . . Average Slot Usage (%) 72 | . 72 Engine 10 | . 10 Treads 25 | . 25 Device 13 | . 13 Storage 14 | . 14 Energy Gun 8 | . 8 Naked Turns . | . . Heaviest Build 11 | 11 11 Greatest Support 40 | 40 40 Greatest Overweight (x) 1 | . 1 Average Overweight (x) . | . . Largest Inventory Capacity 8 | 8 8 Average Capacity 7 | 7 8 Most Carried 7 | 5 7 Average Carried 4 | 2 5 Final Capacity 8 | 8 8 Final Carried 7 | 5 7 Class Distribution -------------------- 100% | Mutant Dominant Class ---------------- Mutant | -10/Materials Resources | -11 -10 ----------- Run | Yrd Mat Matter Collected 270 | 270 . Remotely 67 | 67 . Salvage Created 298 | 182 116 Parts 20 | 9 11 Haulers Intercepted . | . . Recyclers Shooed . | . . Parts Field Recycled . | . . Retrieved Matter . | . . Parts Self-Destructed . | . . Prevented . | . . Kills | -11 -10 ------- Run | Yrd Mat Combat Hostiles Destroyed 2 | . 2 Guns 2 | . 2 Classes Destroyed 6 | 3 3 Worker 2 | 2 . Builder 1 | . 1 Tunneler 2 | 2 . Recycler 1 | 1 . Operator 1 | . 1 Grunt 2 | . 2 Best Kill Streak 5 | 5 3 Combat Bots Only 2 | . 2 Max Kills in Single Turn 1 | 1 1 Gunslinging . | . . Exploded . | . . Melee . | . . Uniques/NPCs Destroyed . | . . Combat | -11 -10 -------- Run | Yrd Mat Hostile Shots Fired 80 | . 80 Missed 18 | . 18 Damage Taken 703 | 16 687 Core 254 | . 254 Absorbed by Shields . | . . Core Remaining (%) 100 | 100 . Volleys Fired 35 | 11 24 Largest 1 | 1 1 Hottest 40 | 40 40 Shots Fired 35 | 11 24 Gun 35 | 11 24 Cannon . | . . Launcher . | . . Special . | . . Kinetic . | . . Thermal . | . . Explosive . | . . Electromagnetic 35 | 11 24 Robot Hit Streak 4 | 2 4 Robot Miss Streak 5 | 2 5 Penetration Max . | . . Secondary Targets . | . . Shots Hit Robots 17 | 6 11 Core Hits 10 | 6 4 Critical Kills . | . . Critical Parts Destroyed . | . . Critical Strikes . | . . Melee Attacks . | . . Impact . | . . Slashing . | . . Piercing . | . . Sneak Attacks . | . . Combat Hostiles . | . . Follow-up Attacks . | . . Damage Inflicted 490 | 197 293 Guns 235 | 80 155 Cannons . | . . Explosions 237 | 117 120 Melee . | . . Ramming 18 | . 18 Kinetic . | . . Thermal 237 | 117 120 Explosive . | . . Electromagnetic 235 | 80 155 Impact . | . . Slashing . | . . Piercing . | . . Highest Corruption . | . . Average Corruption . | . . Corruption Purged . | . . Corruption Blocked . | . . Overload Shots . | . . Overflow Damage 4 | . 4 Projectiles . | . . Explosions 4 | . 4 Melee . | . . Knockbacks . | . . Impact . | . . Kinetic . | . . Secondary . | . . Self-Inflicted Damage 24 | 16 8 Shots 1 | 1 . Rammed 5 | . 5 Targets Rammed 5 | . 5 Kicked . | . . Crushed . | . . Highest Temperature 36 | 12 36 Average Temperature 17 | 12 18 Received Heat Transfer 372 | . 372 Siege Activations . | . . Robots Corrupted . | . . Combat Hostiles . | . . Parts Fried . | . . Impact Corruptions . | . . Robots Melted . | . . Combat Hostiles . | . . Parts Melted . | . . Heat Transferred 350 | 150 200 Parts Sabotaged . | . . Parts Stolen . | . . Parts Stripped . | . . Power Chain Reactions 5 | 2 3 Alert | -11 -10 ------- Run | Yrd Mat Peak Influence 158 | 25 158 Initial 16 | . 16 Average 60 | 8 97 Maximum Alert Level . | . . Low Security (%) 100 | 100 100 Level 1 . | . . Level 2 . | . . Level 3 . | . . Level 4 . | . . Level 5 . | . . High Security . | . . Max Security . | . . Squads Dispatched 2 | . 2 Investigation . | . . Extermination . | . . Reinforcement 2 | . 2 Assault . | . . Garrison . | . . Intercept . | . . Searches Triggered . | . . Construction Impeded . | . . Haulers Reinforced . | . . Active Scanning Responses . | . . Cargo Convoy Interrupts . | . . Stealth | -11 -10 --------- Run | Yrd Mat Distress Signals . | . . Communications Jammed . | . . Distress Signals . | . . Times Spotted 13 | . 13 Peak Tracking Total 5 | . 5 Tactical Retreats 3 | . 3 Traps | -11 -10 ------- Run | Yrd Mat Traps Triggered . | . . Indirectly . | . . Trap Hack Attempts . | . . Triggered . | . . Disarmed . | . . Reprogrammed . | . . Reused . | . . Traps Extracted . | . . Installed . | . . Triggered . | . . Machines | -11 -10 ---------- Run | Yrd Mat Machines Disabled 1 | . 1 Max in Single Turn 1 | . 1 Machines Repaired . | . . Machines Dismantled . | . . Machines Sabotaged . | . . Overloaded Fab Kills . | . . Hacking | -11 -10 --------- Run | Yrd Mat Machines Accessed . | . . Terminals . | . . Fabricators . | . . Repair Stations . | . . Recycling Units . | . . Scanalyzers . | . . Garrison Access . | . . Total Hacks . | . . Successful . | . . Failed . | . . Catastrophic . | . . Database Lockouts . | . . Manual . | . . Terminals . | . . Fabricators . | . . Repair Stations . | . . Recycling Units . | . . Scanalyzers . | . . Garrison Access . | . . Terminal Hacks . | . . Fabricator Hacks . | . . Repair Station Hacks . | . . Recycling Unit Hacks . | . . Scanalyzer . | . . Garrison Access Hacks . | . . Unauthorized Hacks . | . . Terminals . | . . Fabricators . | . . Repair Stations . | . . Recycling Units . | . . Scanalyzers . | . . Garrison Access . | . . Data Cores Recovered . | . . Used . | . . Hacking Detections . | . . Full Trace Events . | . . Feedback Events . | . . Feedback Blocked . | . . Robot Schematics Acquired . | . . Robots Built . | . . Authchips . | . . Time . | . . Total Robot Build Rating . | . . Part Schematics Acquired . | . . Parts Built . | . . Authchips . | . . Time . | . . Total Part Build Rating . | . . Parts Repaired . | . . Time . | . . Parts Recycled . | . . Recycled Matter . | . . Retrieved Matter . | . . Retrieved Components . | . . Parts Scanalyzed . | . . Part Schematics Acquired . | . . Parts Damaged . | . . Bothacking | -11 -10 ------------ Run | Yrd Mat Used RIF Installer . | . . Robots Hacked . | . . Non-combat . | . . Combat . | . . Robot Hacks Applied . | . . Relay Couplers Released . | . . Fabnet Peak Effective % . | . . Robots Rewired . | . . Allies Hacked . | . . Hacks Repelled . | . . Allies | -11 -10 -------- Run | Yrd Mat Total Allies . | . . Largest Group . | . . Highest-Rated Group . | . . Highest-Rated Ally . | . . Total Orders . | . . Ally Attacks . | . . Total Damage . | . . Kills . | . . Allies Corrupted . | . . Allies Melted . | . . Intel | -11 -10 ------- Run | Yrd Mat Robot Analysis Total . | . . Derelict Logs Recovered . | . . Drone Launches . | . . Drone Recoveries . | . . Exploration | -11 -10 ------------- Run | Yrd Mat Turns Passed 371 | 153 218 Spaces Moved 169 | 74 95 Core 12 | 11 1 Treads 157 | 63 94 Legs . | . . Wheels . | . . Hover . | . . Flight . | . . Fastest Speed 50 | 50 100 Average Speed 152 | 143 159 Slowest Speed 160 | 160 160 Overloaded Moves . | . . Propulsion Burnouts . | . . Robots Hopped . | . . Cave-ins Triggered . | . . Exploration Rate (%) 13 | 5 22 Regions Visited 1 Branch Regions . Pre-discovered Areas . | . . Known Exits Taken . | . . Unknown Exits Taken 1 | 1 . Scrap Searched . | . . Spaces Dug . | . . Terrain Destroyed 25 | 9 16 Melee . | . . Projectile . | . . AOE 25 | 9 16 Terrain Rammed . | . . Walls Destroyed . | . . Machines Disabled . | . . Actions | -11 -10 --------- Run | Yrd Mat Total 247 | 110 137 Wait 15 | 6 9 Move 168 | 73 95 Hop . | . . Pick Up 15 | 12 3 Fast Attach . | . . Attach 6 | 6 . Detach . | . . Swap 1 | 1 . Drop 2 | 1 1 Fire 35 | 11 24 Melee . | . . Ram 3 | . 3 Kick . | . . Crush 2 | . 2 Escape Stasis . | . . Rewire . | . . Trap . | . . Miscellaneous . | . . Route ------- -11/Scrapyard -10/Materials History --------- Turn | Location | Event 2 | -11/Scrapyard | Met Revision 17 5 | -11/Scrapyard | Discovered new exit (range 15) 154 | -11/Scrapyard | Entered Materials 311 | -10/Materials | Build established: Mutant 357 | -10/Materials | Core integrity fell below 50% 371 | -10/Materials | Core integrity fell below 20% 372 | -10/Materials | Destroyed by G-34 Mercenary with Small Laser Last Messages --------------- 00283_ K-01 Serf collects debris. 00285_ R-06 Scavenger collects Hover Unit. 00287_ K-01 Serf collects debris. 00313_ Slammed into G-34 Mercenary. 00322_ U-05 Engineer lays Concrete. 00328_ Lgt. Ion Engine destroyed. 00329_ K-01 Serf collects debris. 00329_ U-05 Engineer lays Concrete. 00330_ K-01 Serf collects debris. 00330_ U-05 Engineer lays Concrete. 00332_ K-01 Serf collects debris. 00332_ U-05 Engineer lays Concrete. 00333_ K-01 Serf collects debris. 00334_ G-34 Mercenary misfires. 00336_ K-01 Serf collects debris. 00343_ U-05 Engineer builds a Wall. 00349_ Lgt. Treads destroyed. 00366_ Seismic Detector destroyed. 00368_ Lgt. Treads destroyed. 00369_ Slammed into G-34 Mercenary. Map ----- +----------------------------------------------------+ | | | | | | | | | | | | | | | | | | | | | | | | | | | | | | | | | | | ???######???????????###############??????????????? | | ??? ??????????# #??????????????? | | ????= = ?????????# """"" =#??????????????? | | ???? ?????????# ""T"" [[[ #??????????????? | | ?????" """??????????# [[[ #??????????????? | | ?????" """??????????# ! [[ #??????????????? | | ?????? ""?????????### #??????????????? | | ?????? ????######;;######+############ ????????? | | #######+########### g g@ ^ ??????? | | % =% % %%g ^ ??????? | | ######## %g ??????? | | #?############# #############???????? | | ######## #??????####???# #???????????????????? | | ???????# #?????????????# #???????????????????? | | ???????# #????????????## ##???? ?????????????? | | ???????# #??########### # ?????????? | | ???????# #??# % # ?????????? | | ???????# #??# + #????????? | | ???????# #??# # ?????????? | | ???????# #??# ####### # ?????????? | | ???????# #??# ######### ### ?????????? | | ?????"?# #??# # #k#???########?????????? | | ????"" / #### # # #????????????????????? | | ???????# %# # #????????????????????? | | ???????# +% """ # #????????????????????? | | ???????# # """ # #????????????????????? | | ???????#########+## """ # #????????????????????? | | ?????????????? ?# # #????????????????????? | | ????????????? ?# #??????????????????????? | | ????????????""" ?# ""T"" #??????????????????????? | | ??????????? """ ?# """"" #??????????????????????? | | ?????????? """ ?# + ?????????????????????? | | ????????? ??? ?######### ????????????????????? | +----------------------------------------------------+ Best States ------------- Heat Dissipation 25 Energy Generation 10 Energy Capacity 125 Matter Stores 300 Matter Capacity 300 Sight Range 16 Terrain Scan Density 10 Evasion (%) 40 Recoil Reduction 2 Item Schematics ----------------- None Robot Schematics ------------------ None Fabricated ------------ Nothing Alien Tech Used ----------------- None Achievements -------------- None Challenges ------------ None Game ------ Seed GuidanceBiocellBarrier Manual? 0 Play Time 00:17:49 Cumulative 15.3 hours Start 2024.04.02 @ 01:05:43 End 2024.04.02 @ 01:43:09 Sessions 1 Manual Loads 0 Difficulty Rogue Special Mode None Game No. 15 Rogue 15 Adventurer 0 Explorer 0 Win Type - Total 0 Types 0/0/0/0/0/0/0/0/0 Lore% 19 Gallery% 18 Achievement% 22 Wizard Run 0 Options --------- Layout 1 ASCII 0 Keyboard 0 Movement Mouse Keybinds 0 Fullscreen 2 Font 24/Smallcaps Map View 50x35 Zoom Use 0% Tactical HUD 1 Map Filters NONE Filters NONE Steam 1 RUN: 8c25fe40-898e-4b0d-b30f-842459866d72